[Event "Titled Tuesday Blitz August 08 Late 2023"]
[White "Ai, Evan"]
[Black "Bagrationi, Alexander"]
[WhiteFideId "2094770"]
[BlackFideId "14104954"]
[WhiteElo "2326"]
[BlackElo "2605"]
[Result "0-1"]
[Round "1"]
[TimeControl "180+1"]
[Date "2023.08.08"]
[WhiteClock "0:00:13"]
[BlackClock "0:00:09"]
[Board "127"]

1. e4 {[%clk 0:02:55]}  c5 {[%clk 0:02:58]} 2. Nf3 {[%clk 0:02:55]}  Nc6 {[%clk 0:02:58]} 3. d4 {[%clk 0:02:53]}  cxd4 {[%clk 0:02:58]} 4. Nxd4 {[%clk 0:02:54]}  g6 {[%clk 0:02:59]} 5. c4 {[%clk 0:02:53]}  Bg7 {[%clk 0:02:59]} 6. Be3 {[%clk 0:02:52]}  Nf6 {[%clk 0:02:58]} 7. Nc3 {[%clk 0:02:49]}  Ng4 {[%clk 0:02:59]} 8. Qxg4 {[%clk 0:02:45]}  Nxd4 {[%clk 0:02:59]} 9. Qd1 {[%clk 0:02:38]}  Ne6 {[%clk 0:02:59]} 10. Be2 {[%clk 0:02:38]}  Qa5 {[%clk 0:03:00]} 11. Qd2 {[%clk 0:02:37]}  b6 {[%clk 0:02:59]} 12. O-O {[%clk 0:02:30]}  Bb7 {[%clk 0:02:59]} 13. f3 {[%clk 0:02:30]}  h5 {[%clk 0:02:52]} 14. a3 {[%clk 0:02:22]}  g5 {[%clk 0:02:42]} 15. Rfd1 {[%clk 0:02:14]}  d6 {[%clk 0:02:39]} 16. b4 {[%clk 0:02:12]}  Qe5 {[%clk 0:02:39]} 17. Rac1 {[%clk 0:02:12]}  h4 {[%clk 0:02:35]} 18. Nd5 {[%clk 0:02:04]}  Kf8 {[%clk 0:02:34]} 19. Bd3 {[%clk 0:01:55]}  Qb2 {[%clk 0:02:20]} 20. Rc2 {[%clk 0:01:45]}  Qe5 {[%clk 0:02:02]} 21. Rf1 {[%clk 0:01:38]}  Re8 {[%clk 0:02:00]} 22. Kh1 {[%clk 0:01:25]}  Kg8 {[%clk 0:01:54]} 23. Qf2 {[%clk 0:01:21]}  Nf4 {[%clk 0:01:48]} 24. Bxf4 {[%clk 0:01:15]}  gxf4 {[%clk 0:01:48]} 25. c5 {[%clk 0:01:15]}  dxc5 {[%clk 0:01:40]} 26. bxc5 {[%clk 0:01:16]}  bxc5 {[%clk 0:01:11]} 27. Rxc5 {[%clk 0:01:15]}  h3 {[%clk 0:01:08]} 28. g3 {[%clk 0:01:10]}  fxg3 {[%clk 0:01:05]} 29. Qxg3 {[%clk 0:01:08]}  Qd4 {[%clk 0:00:55]} 30. Rg1 {[%clk 0:00:56]}  Rh6 {[%clk 0:00:53]} 31. Rc4 {[%clk 0:00:53]}  Rg6 {[%clk 0:00:45]} 32. Rxd4 {[%clk 0:00:52]}  Bxd4 {[%clk 0:00:43]} 33. Nxe7+ {[%clk 0:00:42]}  Rxe7 {[%clk 0:00:39]} 34. Qb8+ {[%clk 0:00:42]}  Kg7 {[%clk 0:00:39]} 35. Rxg6+ {[%clk 0:00:42]}  fxg6 {[%clk 0:00:39]} 36. Qd6 {[%clk 0:00:41]}  Bf6 {[%clk 0:00:37]} 37. Kg1 {[%clk 0:00:40]}  Bc8 {[%clk 0:00:19]} 38. Kf2 {[%clk 0:00:40]}  Be6 {[%clk 0:00:19]} 39. e5 {[%clk 0:00:38]}  Bh4+ {[%clk 0:00:19]} 40. Ke2 {[%clk 0:00:38]}  Bf7 {[%clk 0:00:17]} 41. f4 {[%clk 0:00:38]}  Re6 {[%clk 0:00:15]} 42. Qd4 {[%clk 0:00:38]}  Be7 {[%clk 0:00:12]} 43. f5 {[%clk 0:00:38]}  gxf5 {[%clk 0:00:12]} 44. Bxf5 {[%clk 0:00:39]}  Bh5+ {[%clk 0:00:11]} 45. Kf2 {[%clk 0:00:38]}  Rb6 {[%clk 0:00:10]} 46. e6+ {[%clk 0:00:36]}  Bf6 {[%clk 0:00:10]} 47. Qd7+ {[%clk 0:00:37]}  Kh6 {[%clk 0:00:11]} 48. e7 {[%clk 0:00:34]}  Rb2+ {[%clk 0:00:09]} 49. Kg3 {[%clk 0:00:13]}  Be5+ {[%clk 0:00:10]} 50. Kxh3 {[%clk 0:00:13]}  Rxh2# {[%clk 0:00:09]} 0-1


[Site "https://www.chess.com"]

[Event "Titled Tuesday Blitz August 08 Late 2023"]
[White "AndresDelgado77"]
[Black "Colbow, Collin"]
[BlackFideId "16201132"]
[WhiteElo "2321"]
[BlackElo "2600"]
[Result "0-1"]
[Round "1"]
[TimeControl "180+1"]
[Date "2023.08.08"]
[WhiteClock "0:00:00"]
[BlackClock "0:01:10"]
[Board "129"]

1. e4 {[%clk 0:02:59]}  c6 {[%clk 0:02:52]} 2. d4 {[%clk 0:02:51]}  d5 {[%clk 0:02:53]} 3. Nc3 {[%clk 0:02:51]}  dxe4 {[%clk 0:02:51]} 4. Nxe4 {[%clk 0:02:51]}  Bf5 {[%clk 0:02:51]} 5. Ng3 {[%clk 0:02:50]}  Bg6 {[%clk 0:02:51]} 6. h4 {[%clk 0:02:51]}  h6 {[%clk 0:02:51]} 7. Nf3 {[%clk 0:02:51]}  Nd7 {[%clk 0:02:39]} 8. h5 {[%clk 0:02:41]}  Bh7 {[%clk 0:02:39]} 9. Bd3 {[%clk 0:02:41]}  Bxd3 {[%clk 0:02:30]} 10. Qxd3 {[%clk 0:02:41]}  Ngf6 {[%clk 0:02:31]} 11. Bd2 {[%clk 0:02:38]}  e6 {[%clk 0:02:31]} 12. O-O-O {[%clk 0:02:36]}  Bd6 {[%clk 0:02:26]} 13. Ne4 {[%clk 0:02:36]}  Nxe4 {[%clk 0:02:25]} 14. Qxe4 {[%clk 0:02:36]}  Nf6 {[%clk 0:02:26]} 15. Qe2 {[%clk 0:02:36]}  Qc7 {[%clk 0:02:25]} 16. g3 {[%clk 0:02:35]}  O-O-O {[%clk 0:02:26]} 17. Kb1 {[%clk 0:02:35]}  Kb8 {[%clk 0:02:21]} 18. c4 {[%clk 0:02:34]}  c5 {[%clk 0:02:20]} 19. dxc5 {[%clk 0:02:32]}  Qxc5 {[%clk 0:02:21]} 20. Be3 {[%clk 0:02:27]}  Qc6 {[%clk 0:02:20]} 21. Rxd6 {[%clk 0:02:08]}  Rxd6 {[%clk 0:02:16]} 22. Bf4 {[%clk 0:02:07]}  Rd8 {[%clk 0:02:09]} 23. Rd1 {[%clk 0:02:01]}  Kc8 {[%clk 0:02:08]} 24. Bxd6 {[%clk 0:01:30]}  Rxd6 {[%clk 0:02:09]} 25. Rxd6 {[%clk 0:01:21]}  Qxd6 {[%clk 0:02:10]} 26. Ne5 {[%clk 0:01:19]}  Ne4 {[%clk 0:01:48]} 27. Nxf7 {[%clk 0:00:57]}  Qd4 {[%clk 0:01:49]} 28. a3 {[%clk 0:00:33]}  Qxf2 {[%clk 0:01:32]} 29. Qxe4 {[%clk 0:00:17]}  Qxf7 {[%clk 0:01:32]} 30. g4 {[%clk 0:00:16]}  Qf6 {[%clk 0:01:29]} 31. Ka2 {[%clk 0:00:15]}  e5 {[%clk 0:01:29]} 32. Qd5 {[%clk 0:00:13]}  Qe7 {[%clk 0:01:28]} 33. Qe4 {[%clk 0:00:11]}  Kc7 {[%clk 0:01:28]} 34. b4 {[%clk 0:00:09]}  Qf6 {[%clk 0:01:25]} 35. b5 {[%clk 0:00:06]}  Qf4 {[%clk 0:01:22]} 36. Qd5 {[%clk 0:00:06]}  e4 {[%clk 0:01:18]} 37. c5 {[%clk 0:00:05]}  e3 {[%clk 0:01:14]} 38. c6 {[%clk 0:00:00]}  bxc6 {[%clk 0:01:10]} 0-1


[Site "https://www.chess.com"]

[Event "Titled Tuesday Blitz August 08 Late 2023"]
[White "Richter, Nils"]
[Black "Stachanczyk, Jacek"]
[WhiteFideId "12990809"]
[BlackFideId "1116657"]
[WhiteElo "2596"]
[BlackElo "2321"]
[Result "1-0"]
[Round "1"]
[TimeControl "180+1"]
[Date "2023.08.08"]
[WhiteClock "0:00:54"]
[BlackClock "0:00:05"]
[Board "130"]

1. d4 {[%clk 0:02:58]}  d5 {[%clk 0:02:58]} 2. c4 {[%clk 0:02:48]}  c6 {[%clk 0:02:57]} 3. Nf3 {[%clk 0:02:48]}  Nf6 {[%clk 0:02:56]} 4. Nc3 {[%clk 0:02:48]}  dxc4 {[%clk 0:02:52]} 5. e4 {[%clk 0:02:37]}  b5 {[%clk 0:02:51]} 6. Be2 {[%clk 0:02:33]}  b4 {[%clk 0:02:43]} 7. Na4 {[%clk 0:02:33]}  Nxe4 {[%clk 0:02:43]} 8. Bxc4 {[%clk 0:02:32]}  Nd7 {[%clk 0:02:33]} 9. O-O {[%clk 0:02:25]}  e6 {[%clk 0:02:32]} 10. Re1 {[%clk 0:02:23]}  Nef6 {[%clk 0:02:26]} 11. Ng5 {[%clk 0:02:20]}  Nd5 {[%clk 0:02:23]} 12. Qf3 {[%clk 0:02:14]}  N7f6 {[%clk 0:02:16]} 13. Nc5 {[%clk 0:01:58]}  Be7 {[%clk 0:01:55]} 14. a3 {[%clk 0:01:53]}  bxa3 {[%clk 0:01:50]} 15. Rxa3 {[%clk 0:01:54]}  O-O {[%clk 0:01:49]} 16. Bd2 {[%clk 0:01:47]}  a5 {[%clk 0:01:40]} 17. Rea1 {[%clk 0:01:46]}  h6 {[%clk 0:01:16]} 18. Nge4 {[%clk 0:01:43]}  Nxe4 {[%clk 0:01:14]} 19. Qxe4 {[%clk 0:01:44]}  Bxc5 {[%clk 0:00:51]} 20. dxc5 {[%clk 0:01:45]}  Qf6 {[%clk 0:00:48]} 21. Qc2 {[%clk 0:01:40]}  Rb8 {[%clk 0:00:40]} 22. b3 {[%clk 0:01:34]}  Qd4 {[%clk 0:00:28]} 23. Rxa5 {[%clk 0:01:31]}  e5 {[%clk 0:00:27]} 24. h3 {[%clk 0:01:25]}  Qh4 {[%clk 0:00:23]} 25. Re1 {[%clk 0:01:24]}  Qf6 {[%clk 0:00:20]} 26. Qe4 {[%clk 0:01:24]}  Re8 {[%clk 0:00:18]} 27. Ra7 {[%clk 0:01:23]}  Be6 {[%clk 0:00:17]} 28. Qxe5 {[%clk 0:01:23]}  Qg6 {[%clk 0:00:16]} 29. Bxd5 {[%clk 0:01:22]}  Bxd5 {[%clk 0:00:15]} 30. Qxe8+ {[%clk 0:01:23]}  Rxe8 {[%clk 0:00:10]} 31. Rxe8+ {[%clk 0:01:24]}  Kh7 {[%clk 0:00:11]} 32. g3 {[%clk 0:01:21]}  Qb1+ {[%clk 0:00:09]} 33. Be1 {[%clk 0:01:19]}  Qxb3 {[%clk 0:00:08]} 34. Re3 {[%clk 0:01:18]}  Qc2 {[%clk 0:00:04]} 35. Ra1 {[%clk 0:01:14]}  Qf5 {[%clk 0:00:05]} 36. Kh2 {[%clk 0:01:11]}  Be6 {[%clk 0:00:05]} 37. g4 {[%clk 0:01:07]}  Qf4+ {[%clk 0:00:06]} 38. Kg1 {[%clk 0:01:06]}  h5 {[%clk 0:00:06]} 39. gxh5 {[%clk 0:01:06]}  Qg5+ {[%clk 0:00:06]} 40. Rg3 {[%clk 0:01:06]}  Qxh5 {[%clk 0:00:06]} 41. Bc3 {[%clk 0:01:07]}  f6 {[%clk 0:00:06]} 42. Ra7 {[%clk 0:01:05]}  Bf7 {[%clk 0:00:06]} 43. Kh2 {[%clk 0:01:04]}  Qd5 {[%clk 0:00:04]} 44. Ba5 {[%clk 0:00:59]}  Bg6 {[%clk 0:00:05]} 45. Bc3 {[%clk 0:00:56]}  Qxc5 {[%clk 0:00:05]} 46. Ra2 {[%clk 0:00:52]}  Qd5 {[%clk 0:00:05]} 47. Rd2 {[%clk 0:00:52]}  Qe4 {[%clk 0:00:05]} 48. Rd4 {[%clk 0:00:53]}  Qe5 {[%clk 0:00:04]} 49. Rh4+ {[%clk 0:00:54]}  Qh5 {[%clk 0:00:05]} 50. Rxh5+ {[%clk 0:00:54]}  Bxh5 {[%clk 0:00:05]} 51. Re3 {[%clk 0:00:54]} 1-0


[Site "https://www.chess.com"]

[Event "Titled Tuesday Blitz August 08 Late 2023"]
[White "Vlassov, Nikolai"]
[Black "Garmendiarov"]
[WhiteFideId "4103360"]
[WhiteElo "2594"]
[BlackElo "2319"]
[Result "1-0"]
[Round "1"]
[TimeControl "180+1"]
[Date "2023.08.08"]
[WhiteClock "0:00:39"]
[BlackClock "0:00:01"]
[Board "132"]

1. e4 {[%clk 0:03:00]}  c5 {[%clk 0:02:59]} 2. c3 {[%clk 0:02:59]}  Nf6 {[%clk 0:02:58]} 3. e5 {[%clk 0:02:59]}  Nd5 {[%clk 0:02:59]} 4. d4 {[%clk 0:02:59]}  cxd4 {[%clk 0:03:00]} 5. cxd4 {[%clk 0:02:59]}  d6 {[%clk 0:03:00]} 6. Bc4 {[%clk 0:02:59]}  Nb6 {[%clk 0:03:00]} 7. Bb3 {[%clk 0:02:59]}  dxe5 {[%clk 0:02:57]} 8. Qh5 {[%clk 0:02:57]}  e6 {[%clk 0:02:28]} 9. dxe5 {[%clk 0:02:57]}  Nc6 {[%clk 0:02:13]} 10. Nc3 {[%clk 0:02:55]}  Be7 {[%clk 0:02:08]} 11. Nf3 {[%clk 0:02:46]}  O-O {[%clk 0:02:06]} 12. Bg5 {[%clk 0:02:45]}  Bxg5 {[%clk 0:01:50]} 13. Rd1 {[%clk 0:02:44]}  g6 {[%clk 0:01:16]} 14. Rxd8 {[%clk 0:02:34]}  gxh5 {[%clk 0:01:15]} 15. Rxf8+ {[%clk 0:02:34]}  Kxf8 {[%clk 0:01:16]} 16. Nxg5 {[%clk 0:02:34]}  Nxe5 {[%clk 0:01:10]} 17. Ke2 {[%clk 0:02:23]}  h6 {[%clk 0:01:07]} 18. Nge4 {[%clk 0:02:21]}  Ke7 {[%clk 0:01:01]} 19. Nc5 {[%clk 0:02:13]}  Nbd7 {[%clk 0:00:53]} 20. N5e4 {[%clk 0:01:55]}  f5 {[%clk 0:00:46]} 21. Ng3 {[%clk 0:01:52]}  h4 {[%clk 0:00:45]} 22. Nh5 {[%clk 0:01:53]}  Nf6 {[%clk 0:00:42]} 23. Nf4 {[%clk 0:01:45]}  Bd7 {[%clk 0:00:38]} 24. Re1 {[%clk 0:01:38]}  Re8 {[%clk 0:00:14]} 25. Kf1 {[%clk 0:01:35]}  Kd6 {[%clk 0:00:12]} 26. Rd1+ {[%clk 0:01:20]}  Kc7 {[%clk 0:00:09]} 27. Re1 {[%clk 0:01:17]}  Kd6 {[%clk 0:00:09]} 28. f3 {[%clk 0:01:10]}  b5 {[%clk 0:00:08]} 29. a3 {[%clk 0:01:06]}  a5 {[%clk 0:00:08]} 30. Rd1+ {[%clk 0:01:01]}  Kc7 {[%clk 0:00:08]} 31. Re1 {[%clk 0:01:00]}  Kd6 {[%clk 0:00:08]} 32. Nce2 {[%clk 0:00:57]}  Kc7 {[%clk 0:00:05]} 33. Nd4 {[%clk 0:00:57]}  Nc4 {[%clk 0:00:04]} 34. Bxc4 {[%clk 0:00:51]}  bxc4 {[%clk 0:00:05]} 35. Ndxe6+ {[%clk 0:00:49]}  Kd6 {[%clk 0:00:03]} 36. Rd1+ {[%clk 0:00:46]}  Ke7 {[%clk 0:00:01]} 37. Nd4 {[%clk 0:00:43]}  Bc6 {[%clk 0:00:02]} 38. Nxc6+ {[%clk 0:00:42]}  Kf7 {[%clk 0:00:02]} 39. Nxa5 {[%clk 0:00:40]}  Rb8 {[%clk 0:00:02]} 40. Nxc4 {[%clk 0:00:39]}  Rc8 {[%clk 0:00:01]} 41. Nd6+ {[%clk 0:00:39]} 1-0


[Site "https://www.chess.com"]

[Event "Titled Tuesday Blitz August 08 Late 2023"]
[White "Skaric, Djuro"]
[Black "Manukyan, Sargis A."]
[WhiteFideId "934569"]
[BlackFideId "13303970"]
[WhiteElo "2318"]
[BlackElo "2592"]
[Result "1-0"]
[Round "1"]
[TimeControl "180+1"]
[Date "2023.08.08"]
[WhiteClock "0:01:04"]
[BlackClock "0:00:07"]
[Board "133"]

1. g3 {[%clk 0:03:00]}  d5 {[%clk 0:02:55]} 2. Bg2 {[%clk 0:03:00]}  e6 {[%clk 0:02:53]} 3. d3 {[%clk 0:02:57]}  Nf6 {[%clk 0:02:52]} 4. Nf3 {[%clk 0:02:58]}  Be7 {[%clk 0:02:51]} 5. O-O {[%clk 0:02:58]}  O-O {[%clk 0:02:51]} 6. h3 {[%clk 0:02:59]}  c5 {[%clk 0:02:50]} 7. Nc3 {[%clk 0:02:59]}  Nc6 {[%clk 0:02:50]} 8. e4 {[%clk 0:02:59]}  d4 {[%clk 0:02:49]} 9. Ne2 {[%clk 0:02:59]}  e5 {[%clk 0:02:49]} 10. Ne1 {[%clk 0:02:59]}  Bd7 {[%clk 0:02:48]} 11. f4 {[%clk 0:02:59]}  Qc8 {[%clk 0:02:47]} 12. f5 {[%clk 0:02:58]}  b5 {[%clk 0:02:46]} 13. g4 {[%clk 0:02:58]}  c4 {[%clk 0:02:46]} 14. Ng3 {[%clk 0:02:55]}  cxd3 {[%clk 0:02:46]} 15. cxd3 {[%clk 0:02:54]}  h6 {[%clk 0:02:43]} 16. Rf2 {[%clk 0:02:51]}  Nh7 {[%clk 0:02:40]} 17. Bf1 {[%clk 0:02:47]}  f6 {[%clk 0:02:28]} 18. h4 {[%clk 0:02:46]}  Qd8 {[%clk 0:02:27]} 19. Rg2 {[%clk 0:02:45]}  Rc8 {[%clk 0:02:27]} 20. Nh1 {[%clk 0:02:42]}  Be8 {[%clk 0:02:26]} 21. Nf2 {[%clk 0:02:41]}  a5 {[%clk 0:02:24]} 22. Nh3 {[%clk 0:02:40]}  Nb4 {[%clk 0:02:23]} 23. a3 {[%clk 0:02:32]}  Na6 {[%clk 0:02:23]} 24. Bd2 {[%clk 0:02:29]}  a4 {[%clk 0:02:22]} 25. Nf3 {[%clk 0:02:12]}  Nc5 {[%clk 0:02:22]} 26. g5 {[%clk 0:02:13]}  fxg5 {[%clk 0:02:15]} 27. hxg5 {[%clk 0:02:12]}  hxg5 {[%clk 0:02:13]} 28. Nfxg5 {[%clk 0:02:13]}  Nxg5 {[%clk 0:02:05]} 29. Nxg5 {[%clk 0:02:13]}  Nb3 {[%clk 0:02:05]} 30. Ne6 {[%clk 0:02:10]}  Qd7 {[%clk 0:00:40]} 31. Rxg7+ {[%clk 0:02:03]}  Kh8 {[%clk 0:00:40]} 32. Qg4 {[%clk 0:01:44]}  Qxe6 {[%clk 0:00:40]} 33. fxe6 {[%clk 0:01:43]}  Nxd2 {[%clk 0:00:35]} 34. Rxe7 {[%clk 0:01:41]}  Rg8 {[%clk 0:00:34]} 35. Bh3 {[%clk 0:01:21]}  Nf3+ {[%clk 0:00:24]} 36. Kf2 {[%clk 0:01:20]}  Rxg4 {[%clk 0:00:22]} 37. Bxg4 {[%clk 0:01:20]}  Ng5 {[%clk 0:00:22]} 38. Rh1+ {[%clk 0:01:19]}  Kg8 {[%clk 0:00:22]} 39. Bf5 {[%clk 0:01:19]}  Bc6 {[%clk 0:00:15]} 40. Rg1 {[%clk 0:01:17]}  Kf8 {[%clk 0:00:16]} 41. Ra7 {[%clk 0:01:12]}  Bxe4 {[%clk 0:00:15]} 42. e7+ {[%clk 0:01:08]}  Ke8 {[%clk 0:00:11]} 43. Bxc8 {[%clk 0:01:05]}  Bxd3 {[%clk 0:00:09]} 44. Rxg5 {[%clk 0:01:04]}  e4 {[%clk 0:00:08]} 45. Rg8+ {[%clk 0:01:04]}  Kf7 {[%clk 0:00:07]} 46. e8=Q+ {[%clk 0:01:04]} 1-0


[Site "https://www.chess.com"]

[Event "Titled Tuesday Blitz August 08 Late 2023"]
[White "Lalanne, Pablo"]
[Black "Attacker_2006"]
[WhiteFideId "112151"]
[WhiteElo "2315"]
[BlackElo "2576"]
[Result "0-1"]
[Round "1"]
[TimeControl "180+1"]
[Date "2023.08.08"]
[WhiteClock "0:00:09"]
[BlackClock "0:01:38"]
[Board "137"]

1. e4 {[%clk 0:02:59]}  c6 {[%clk 0:02:44]} 2. d4 {[%clk 0:02:58]}  d5 {[%clk 0:02:45]} 3. Nd2 {[%clk 0:02:58]}  dxe4 {[%clk 0:02:45]} 4. Nxe4 {[%clk 0:02:58]}  Nf6 {[%clk 0:02:45]} 5. Nxf6+ {[%clk 0:02:58]}  exf6 {[%clk 0:02:46]} 6. c3 {[%clk 0:02:58]}  Bd6 {[%clk 0:02:46]} 7. Bd3 {[%clk 0:02:58]}  O-O {[%clk 0:02:42]} 8. Qc2 {[%clk 0:02:59]}  Re8+ {[%clk 0:02:41]} 9. Ne2 {[%clk 0:02:59]}  h5 {[%clk 0:02:42]} 10. Bd2 {[%clk 0:02:59]}  h4 {[%clk 0:02:42]} 11. O-O-O {[%clk 0:02:56]}  Be6 {[%clk 0:02:43]} 12. Kb1 {[%clk 0:02:55]}  b5 {[%clk 0:02:42]} 13. h3 {[%clk 0:02:38]}  a5 {[%clk 0:02:42]} 14. g3 {[%clk 0:02:34]}  a4 {[%clk 0:02:41]} 15. gxh4 {[%clk 0:02:31]}  Bc7 {[%clk 0:02:41]} 16. Rhg1 {[%clk 0:02:20]}  Qd5 {[%clk 0:02:40]} 17. Nc1 {[%clk 0:02:21]}  Nd7 {[%clk 0:02:35]} 18. Be4 {[%clk 0:02:03]}  Qh5 {[%clk 0:02:29]} 19. Bxc6 {[%clk 0:01:51]}  Ra6 {[%clk 0:02:22]} 20. d5 {[%clk 0:01:32]}  Bf5 {[%clk 0:02:19]} 21. Nd3 {[%clk 0:01:32]}  Nc5 {[%clk 0:02:17]} 22. Be3 {[%clk 0:01:21]}  Nxd3 {[%clk 0:02:14]} 23. Rxd3 {[%clk 0:01:19]}  Rb8 {[%clk 0:02:05]} 24. Ka1 {[%clk 0:01:14]}  b4 {[%clk 0:01:57]} 25. cxb4 {[%clk 0:01:13]}  a3 {[%clk 0:01:51]} 26. Bd4 {[%clk 0:00:49]}  Rxb4 {[%clk 0:01:47]} 27. Qc3 {[%clk 0:00:39]}  axb2+ {[%clk 0:01:42]} 28. Kb1 {[%clk 0:00:09]}  Qe2 {[%clk 0:01:38]} 0-1


[Site "https://www.chess.com"]

[Event "Titled Tuesday Blitz August 08 Late 2023"]
[White "Sala, Giulia"]
[Black "Taboas Rodriguez, Daniel"]
[WhiteFideId "2840451"]
[BlackFideId "2208466"]
[WhiteElo "2314"]
[BlackElo "2574"]
[Result "1-0"]
[Round "1"]
[TimeControl "180+1"]
[Date "2023.08.08"]
[WhiteClock "0:01:17"]
[BlackClock "0:00:00"]
[Board "139"]

1. d4 {[%clk 0:02:55]}  Nf6 {[%clk 0:02:59]} 2. Bf4 {[%clk 0:02:44]}  d5 {[%clk 0:02:59]} 3. e3 {[%clk 0:02:43]}  c5 {[%clk 0:02:56]} 4. dxc5 {[%clk 0:02:33]}  Nc6 {[%clk 0:02:55]} 5. Bb5 {[%clk 0:02:31]}  e6 {[%clk 0:02:17]} 6. b4 {[%clk 0:02:30]}  Bd7 {[%clk 0:02:14]} 7. c3 {[%clk 0:02:29]}  a5 {[%clk 0:02:10]} 8. Qb3 {[%clk 0:02:28]}  Be7 {[%clk 0:02:00]} 9. Nf3 {[%clk 0:02:27]}  O-O {[%clk 0:02:00]} 10. O-O {[%clk 0:02:26]}  Ne4 {[%clk 0:02:00]} 11. Nbd2 {[%clk 0:02:24]}  Bf6 {[%clk 0:01:46]} 12. Nxe4 {[%clk 0:02:22]}  dxe4 {[%clk 0:01:47]} 13. Nd4 {[%clk 0:02:20]}  e5 {[%clk 0:01:42]} 14. Bxc6 {[%clk 0:02:12]}  bxc6 {[%clk 0:01:42]} 15. Nxc6 {[%clk 0:02:07]}  Bxc6 {[%clk 0:01:41]} 16. Bg3 {[%clk 0:02:07]}  a4 {[%clk 0:01:26]} 17. Qc2 {[%clk 0:02:00]}  Qd3 {[%clk 0:01:23]} 18. Rfc1 {[%clk 0:01:51]}  Rfd8 {[%clk 0:01:08]} 19. c4 {[%clk 0:01:41]}  Bd7 {[%clk 0:00:55]} 20. b5 {[%clk 0:01:36]}  Be6 {[%clk 0:00:54]} 21. c6 {[%clk 0:01:34]}  Rdc8 {[%clk 0:00:50]} 22. Rab1 {[%clk 0:01:25]}  Kf8 {[%clk 0:00:31]} 23. Qb2 {[%clk 0:01:18]}  a3 {[%clk 0:00:28]} 24. Qb4+ {[%clk 0:01:18]}  Be7 {[%clk 0:00:28]} 25. c5 {[%clk 0:01:18]}  Bxa2 {[%clk 0:00:21]} 26. Ra1 {[%clk 0:01:18]}  Be6 {[%clk 0:00:17]} 27. b6 {[%clk 0:01:17]}  Rxc6 {[%clk 0:00:16]} 28. b7 {[%clk 0:01:18]}  Rb8 {[%clk 0:00:16]} 29. Bxe5 {[%clk 0:01:19]}  Qd8 {[%clk 0:00:04]} 30. Bxb8 {[%clk 0:01:17]}  Qxb8 {[%clk 0:00:00]} 31. Rxa3 {[%clk 0:01:17]} 1-0


[Site "https://www.chess.com"]

[Event "Titled Tuesday Blitz August 08 Late 2023"]
[White "Ismagilov, Damir"]
[Black "Lopez Idarraga, Daniel Eduardo"]
[WhiteFideId "34199982"]
[BlackFideId "4405501"]
[WhiteElo "2573"]
[BlackElo "2312"]
[Result "1-0"]
[Round "1"]
[TimeControl "180+1"]
[Date "2023.08.08"]
[WhiteClock "0:00:52"]
[BlackClock "0:01:57"]
[Board "140"]

1. d4 {[%clk 0:02:57]}  d5 {[%clk 0:02:58]} 2. Bf4 {[%clk 0:02:57]}  c5 {[%clk 0:02:57]} 3. e3 {[%clk 0:02:57]}  cxd4 {[%clk 0:02:58]} 4. exd4 {[%clk 0:02:58]}  Nc6 {[%clk 0:02:59]} 5. c3 {[%clk 0:02:57]}  Nf6 {[%clk 0:02:59]} 6. Nd2 {[%clk 0:02:57]}  Bg4 {[%clk 0:02:58]} 7. Qb3 {[%clk 0:02:57]}  Qd7 {[%clk 0:02:58]} 8. Ngf3 {[%clk 0:02:58]}  Bxf3 {[%clk 0:02:58]} 9. Nxf3 {[%clk 0:02:57]}  e6 {[%clk 0:02:59]} 10. Ne5 {[%clk 0:02:58]}  Qc8 {[%clk 0:02:52]} 11. Bb5 {[%clk 0:02:57]}  Nd7 {[%clk 0:02:47]} 12. O-O {[%clk 0:02:41]}  Be7 {[%clk 0:02:42]} 13. h3 {[%clk 0:02:15]}  O-O {[%clk 0:02:40]} 14. Bh2 {[%clk 0:02:16]}  Ndxe5 {[%clk 0:02:39]} 15. dxe5 {[%clk 0:02:12]}  a6 {[%clk 0:02:38]} 16. Bd3 {[%clk 0:02:09]}  b5 {[%clk 0:02:38]} 17. f4 {[%clk 0:02:06]}  g6 {[%clk 0:02:35]} 18. Kh1 {[%clk 0:02:04]}  Na5 {[%clk 0:02:34]} 19. Qd1 {[%clk 0:02:01]}  Nc4 {[%clk 0:02:35]} 20. Qe2 {[%clk 0:02:01]}  a5 {[%clk 0:02:35]} 21. a4 {[%clk 0:01:56]}  b4 {[%clk 0:02:34]} 22. Bxc4 {[%clk 0:01:37]}  Qxc4 {[%clk 0:02:33]} 23. Qxc4 {[%clk 0:01:34]}  dxc4 {[%clk 0:02:34]} 24. Rfd1 {[%clk 0:01:34]}  Rfd8 {[%clk 0:02:33]} 25. Bg1 {[%clk 0:01:33]}  Kf8 {[%clk 0:02:29]} 26. Bb6 {[%clk 0:01:29]}  Rdb8 {[%clk 0:02:26]} 27. Bc7 {[%clk 0:01:27]}  Rb7 {[%clk 0:02:24]} 28. Bd6 {[%clk 0:01:27]}  Ke8 {[%clk 0:02:21]} 29. Kg1 {[%clk 0:01:25]}  Rd7 {[%clk 0:02:19]} 30. Bxe7 {[%clk 0:01:21]}  Kxe7 {[%clk 0:02:18]} 31. Rxd7+ {[%clk 0:01:18]}  Kxd7 {[%clk 0:02:19]} 32. Rd1+ {[%clk 0:01:18]}  Kc7 {[%clk 0:02:20]} 33. Rd4 {[%clk 0:01:17]}  Rd8 {[%clk 0:02:10]} 34. Rxc4+ {[%clk 0:01:14]}  Kb6 {[%clk 0:02:10]} 35. cxb4 {[%clk 0:01:14]}  axb4 {[%clk 0:02:11]} 36. Rxb4+ {[%clk 0:01:14]}  Ka5 {[%clk 0:02:12]} 37. Rb7 {[%clk 0:01:11]}  Rd1+ {[%clk 0:02:10]} 38. Kh2 {[%clk 0:01:10]}  Rd4 {[%clk 0:02:10]} 39. Rxf7 {[%clk 0:01:08]}  Kxa4 {[%clk 0:02:10]} 40. Rxh7 {[%clk 0:01:00]}  Rxf4 {[%clk 0:02:09]} 41. Re7 {[%clk 0:01:01]}  Kb3 {[%clk 0:02:07]} 42. Rxe6 {[%clk 0:01:00]}  Re4 {[%clk 0:02:05]} 43. Rxg6 {[%clk 0:00:58]}  Rxe5 {[%clk 0:02:06]} 44. h4 {[%clk 0:00:56]}  Kxb2 {[%clk 0:02:06]} 45. Rg5 {[%clk 0:00:57]}  Re6 {[%clk 0:02:04]} 46. Rc5 {[%clk 0:00:56]}  Kb3 {[%clk 0:02:04]} 47. h5 {[%clk 0:00:55]}  Kb4 {[%clk 0:02:04]} 48. Rc8 {[%clk 0:00:53]}  Re4 {[%clk 0:01:58]} 49. Kh3 {[%clk 0:00:53]}  Kb5 {[%clk 0:01:57]} 50. g4 {[%clk 0:00:52]}  Kb6 {[%clk 0:01:57]} 51. Kh4 {[%clk 0:00:52]}  Kb7 {[%clk 0:01:57]} 52. Rc1 {[%clk 0:00:52]} 1-0


[Site "https://www.chess.com"]